bitfinex/quotes_ETHUSD_20250924
["timestamp","ask_amount","ask_price","bid_price","bid_amount"]
[1758672002636,0.94732444,4173.2,4173.1,0.024]
[1758672003791,0.51424103,4174.0,4173.1,0.749863]
[1758672003997,0.1192,4173.3,4173.1,0.74465233]
[1758672004308,0.1192,4173.3,4173.2,0.7019]
[1758672004622,0.1192,4173.3,4173.2,0.84655523]
[1758672006426,0.1192,4173.3,4173.2,3.24279792]
[1758672007638,0.001,4174.1,4174.0,2.39578342]
[1758672007794,0.22387392,4174.1,4174.0,2.39578342]
[1758672007999,0.22387392,4174.1,4174.0,2.62408342]
[1758672008447,0.22387392,4174.1,4174.0,0.2283]
[1758672008746,0.22387392,4174.1,4173.2,0.86526948]
[1758672008747,0.1192,4174.0,4173.4,2.39611411]
[1758672008896,2.39594659,4173.8,4173.1,0.024]
[1758672009097,0.1192,4173.2,4173.1,2.64859787]
[1758672009319,0.1192,4173.2,4173.1,3.12219787]
[1758672009549,0.1192,4173.2,4173.1,2.97215843]
[1758672009741,0.1192,4173.2,4173.1,9.78930022]
[1758672009938,0.1192,4173.2,4173.1,12.7717917]
[1758672010166,0.1192,4173.2,4173.1,12.82167722]
[1758672011073,7.19,4174.2,4173.6,2.39597472]
[1758672011360,0.35637085,4174.0,4173.2,0.6919]
[1758672011564,6.41237085,4173.9,4173.8,2.39589822]
[1758672012332,6.63867085,4173.9,4173.6,2.39595754]
[1758672012665,0.22273178,4173.8,4173.3,1.05841556]
[1758672012960,0.22273178,4173.8,4173.1,9.89225555]
[1758672012961,1.02716817,4173.7,4173.4,0.02396127]
[1758672013147,0.22273178,4173.6,4173.4,0.02396127]
[1758672013350,0.22273178,4173.5,4173.4,2.42007289]
[1758672013554,0.2263,4173.6,4173.5,2.39607044]
[1758672013739,0.44903483,4173.6,4173.5,2.39607044]
[1758672014183,0.001,4174.1,4174.0,2.39578342]
[1758672014474,0.001,4174.1,4174.0,3.11164125]
[1758672014634,0.001,4174.1,4174.0,3.08768342]
[1758672014832,0.001,4174.1,4174.0,3.63603768]
[1758672015472,0.001,4174.1,4174.0,2.39578342]
[1758672015669,0.93498981,4174.1,4173.2,0.2395]
[1758672015881,0.7124,4174.1,4173.8,2.39589348]
[1758672016034,0.22257859,4174.0,4173.6,2.39599702]
[1758672016354,2.074,4173.9,4173.8,2.39589822]
[1758672017133,2.3113,4173.9,4173.8,2.39589822]
[1758672017338,2.7854,4173.9,4173.1,9.17161879]
[1758672017538,2.7854,4173.9,4173.6,2.39595822]
[1758672017539,4.2293,4173.8,4173.6,2.39595822]
[1758672017938,0.7114,4173.7,4173.5,2.39605259]
[1758672018133,3.992,4173.8,4173.1,11.56791596]
[1758672018134,0.7114,4173.6,4173.1,11.56791596]
[1758672018349,0.7114,4173.6,4173.3,2.39618483]
[1758672018576,3.992,4173.8,4173.7,2.39595562]
[1758672019275,4.7034,4173.8,4173.6,2.41995465]
[1758672019450,3.992,4173.8,4173.6,2.41995465]
[1758672019647,0.2373,4173.7,4173.6,0.02396013]
[1758672019847,0.7114,4173.7,4172.7,0.96019562]
[1758672020053,0.7114,4173.6,4173.5,2.39607044]
[1758672020289,3.992,4173.8,4173.6,2.3960083]
[1758672020573,4.2293,4173.8,4173.7,2.39595562]
[1758672020735,4.451889,4173.8,4173.6,2.39601162]
[1758672020935,0.1192,4173.5,4173.4,2.39612785]
[1758672021134,0.3565,4173.5,4173.4,2.39612785]
[1758672021337,0.1192,4173.5,4173.4,2.39612785]
[1758672023378,0.37681088,4174.1,4174.0,2.39578342]
[1758672023584,3.79106501,4174.1,4174.0,2.39578342]
[1758672023876,4.72706501,4174.1,4174.0,2.39578342]
[1758672024080,6.80006501,4174.1,4174.0,2.39578342]
[1758672025356,6.80006501,4174.1,4173.8,2.39588054]
[1758672025559,0.22265883,4174.0,4173.8,2.39588054]
[1758672025804,0.22265883,4173.9,4173.8,2.39588054]
[1758672029258,0.22265883,4173.9,4173.8,2.63538054]
[1758672029731,0.22265883,4173.9,4173.8,3.18409568]
[1758672029869,4.21665883,4173.9,4173.8,3.61589568]
[1758672030261,3.994,4173.9,4173.8,3.61589568]
[1758672031304,3.994,4173.9,4173.3,2.39612878]
[1758672031305,4.92822739,4173.9,4173.7,2.39590925]
[1758672031503,0.2373,4173.8,4173.7,2.39590925]
[1758672032921,0.2373,4173.8,4173.7,2.39595562]
[1758672033223,0.2373,4173.8,4173.6,2.39600218]
[1758672033423,0.2373,4173.8,4173.7,2.39595562]
[1758672033831,0.1192,4173.7,4173.6,2.39599336]
[1758672034002,0.2373,4173.8,4173.7,2.39595562]
[1758672034199,5.06114477,4173.8,4173.1,9.17161879]
[1758672034515,0.46026927,4173.7,4173.5,2.39606534]
[1758672034694,0.22296927,4173.6,4173.5,2.39606534]
[1758672035090,3.993,4173.8,4173.6,2.39598913]
[1758672035290,0.22296017,4173.7,4173.6,2.39598913]
[1758672035622,0.22296017,4173.7,4173.6,2.39998913]
[1758672037136,0.22296017,4173.7,4173.6,0.004]
[1758672038518,2.29596017,4173.7,4173.6,0.004]
[1758672039217,3.00736017,4173.7,4173.6,0.004]
[1758672039418,3.14111248,4173.7,4173.6,0.004]
[1758672041354,4.88610886,4173.7,4173.6,0.004]
[1758672041529,7.7957151,4173.7,4173.6,0.004]
[1758672044553,8.17157717,4173.7,4173.6,0.004]
[1758672045744,11.17157717,4173.7,4173.6,0.004]
[1758672049151,10.7957151,4173.7,4173.6,0.004]
[1758672052032,11.17159351,4173.7,4173.6,0.004]
[1758672053835,18.36159351,4173.7,4173.6,0.004]
[1758672060500,3.18818527,4173.3,4173.2,0.004]
[1758672060704,11.15471628,4173.3,4173.2,0.004]
[1758672060868,13.01627106,4173.3,4173.2,0.004]
[1758672061193,12.3764669,4173.3,4173.2,0.004]
[1758672061762,20.2243669,4173.3,4173.2,0.004]
[1758672062468,20.9324669,4173.3,4173.2,0.004]
[1758672063732,21.30838391,4173.3,4173.2,0.004]
[1758672065403,20.60028391,4173.3,4173.2,0.004]
[1758672065582,1.24628011,4173.3,4173.2,0.6739]
[1758672065796,2.074,4173.9,4173.2,0.69786242]
[1758672066095,2.074,4174.5,4173.3,0.6699]
[1758672066297,0.001,4174.6,4174.5,2.39549646]
[1758672066630,1.81,4174.6,4174.5,3.08935142]
[1758672066776,1.81,4174.6,4174.5,0.6699]
[1758672066979,1.81,4174.6,4174.5,0.97644991]
[1758672067313,1.81,4174.6,4174.5,3.37194637]
[1758672067701,1.81,4174.6,4174.5,0.97644991]
[1758672067904,1.81,4174.6,4174.5,0.2373]
[1758672068113,1.81,4174.6,4174.3,0.2373]
[1758672068274,3.0,4174.5,4174.1,0.2373]
[1758672068475,3.0,4174.3,4174.1,0.2373]
[1758672068669,9.103,4174.2,4174.1,0.2373]
[1758672069909,9.103,4174.2,4174.1,0.6699]
[1758672071210,9.103,4174.2,4173.5,2.39606621]
[1758672071411,3.0,4174.1,4173.6,0.33830143]
[1758672071611,3.0,4173.9,4173.6,0.2487]
[1758672071811,3.0,4173.7,4173.4,0.98694812]
[1758672072013,4.028,4173.6,4173.4,0.98694812]
[1758672072405,4.028,4173.6,4173.5,0.6821]
[1758672073593,4.028,4173.6,4173.5,3.07817044]
[1758672073910,4.028,4173.6,4173.5,3.4850823]
[1758672074109,4.027,4173.6,4173.5,3.4850823]
[1758672074316,6.101,4173.6,4173.5,3.4850823]
[1758672074826,6.101,4173.6,4173.5,1.08901186]
[1758672075027,6.101,4173.6,4173.5,3.4850823]
[1758672075391,6.101,4173.6,4173.5,1.08901186]
[1758672075793,6.101,4173.6,4173.5,3.4850823]
[1758672078156,0.001,4174.2,4173.5,1.08901186]
[1758672078364,2.074,4173.6,4173.5,2.39606935]
[1758672078658,3.294,4173.6,4173.5,2.39606935]
[1758672078830,0.001,4174.2,4174.0,2.39573345]
[1758672079030,0.001,4174.2,4173.4,0.98694812]
[1758672079031,3.439,4174.1,4173.5,0.6765]
[1758672079237,3.0,4174.0,4173.9,2.39579967]
[1758672079421,0.001,4174.2,4174.0,2.62393608]
[1758672079620,9.098,4174.1,4174.0,0.2282]
[1758672079821,9.098,4174.1,4174.0,0.6765]
[1758672080756,3.0,4174.0,4173.6,2.56234812]
[1758672080926,4.024,4173.9,4173.7,0.62795962]
[1758672081321,4.024,4173.9,4173.7,0.39975962]
[1758672081526,4.024,4173.9,4173.8,0.2282]
[1758672081527,7.024,4173.9,4173.8,0.2282]
[1758672081729,7.024,4173.9,4173.8,3.07239822]
[1758672081954,4.024,4173.9,4173.8,3.07239822]
[1758672082139,4.024,4173.9,4173.8,3.67584863]
[1758672082742,4.024,4173.9,4173.8,3.69980761]
[1758672083063,6.103,4173.9,4173.8,3.69980761]
[1758672083439,13.293,4173.9,4173.8,3.25150761]
[1758672083762,13.293,4173.9,4173.8,1.27995041]
[1758672083965,13.293,4173.9,4173.8,0.6765]
[1758672084168,13.293,4173.9,4173.7,2.79571317]
[1758672084169,0.1192,4173.8,4173.7,0.39975962]
[1758672084670,0.1192,4173.8,4173.7,1.07625962]
[1758672084855,0.1192,4173.8,4173.7,3.47221524]
[1758672085327,0.1192,4173.8,4173.7,3.49617479]
[1758672086750,7.1452,4173.8,4173.7,3.49617479]
[1758672086952,4.1452,4173.8,4173.7,3.49617479]
[1758672088229,4.1452,4173.8,4173.7,3.47221524]
[1758672090863,0.1192,4173.8,4173.7,3.47221524]
[1758672091039,4.1432,4173.8,4173.7,3.47221524]
[1758672092674,4.1432,4173.8,4173.7,3.02391524]
[1758672093061,4.1432,4173.8,4173.7,3.47221524]
[1758672094985,4.1432,4173.8,4173.7,3.02391524]
[1758672095482,4.1432,4173.8,4173.7,2.79571524]
[1758672096080,4.1432,4173.8,4173.7,3.02391524]
[1758672096290,4.1432,4173.8,4173.7,3.47221524]
[1758672097384,4.1432,4173.8,4173.7,0.39975962]
[1758672097585,4.1432,4173.8,4173.7,2.39595562]
[1758672097757,4.1432,4173.8,4173.7,2.64811517]
[1758672100501,4.1432,4173.8,4173.5,2.40001442]
[1758672100798,4.7309,4173.8,4173.6,2.39600153]
[1758672101092,4.2701,4173.8,4173.6,2.39600153]
[1758672101291,7.19,4173.7,4173.6,2.39600153]
[1758672101502,0.1192,4173.6,4173.5,0.004]
[1758672101666,4.1392,4173.6,4173.5,0.004]
[1758672101866,4.3643,4173.6,4173.5,2.40007044]
[1758672102383,4.1392,4173.6,4173.5,0.004]
[1758672102684,5.16732742,4173.6,4173.5,0.004]
[1758672103667,5.16732742,4173.6,4173.5,2.40007044]
[1758672103861,4.72072742,4173.6,4173.5,2.40007044]
[1758672104399,4.49562742,4173.6,4173.5,2.40007044]
[1758672104960,4.1392,4173.6,4173.5,2.40007044]
[1758672107288,4.3643,4173.6,4173.5,16.90007044]
[1758672107917,4.1392,4173.6,4173.5,16.90007044]
[1758672108714,4.1392,4173.6,4173.5,19.55927413]
[1758672109116,0.1192,4173.6,4173.5,19.55927413]
[1758672109419,6.2082,4173.6,4173.5,19.55927413]
[1758672110708,6.2082,4173.6,4173.5,5.05927413]
[1758672110889,0.1192,4173.6,4173.5,3.10547044]
[1758672111085,6.2082,4173.6,4173.5,17.62943114]
[1758672111291,6.2082,4173.6,4173.5,17.60547044]
[1758672112891,6.2082,4173.6,4173.5,17.13787044]
[1758672113325,4.1342,4173.6,4173.5,17.13787044]
[1758672113626,4.1342,4173.6,4173.5,19.60603413]
[1758672113995,0.1192,4173.6,4173.5,19.60603413]
[1758672114319,7.19,4173.7,4173.6,2.39601303]
[1758672114522,11.204,4173.7,4173.6,3.10141303]
[1758672117131,7.19,4173.7,4173.6,3.10141303]
[1758672117328,0.001,4174.1,4174.0,2.39578342]
[1758672117626,4.017,4174.1,4174.0,2.41974125]
[1758672117928,0.001,4174.1,4174.0,17.62514125]
[1758672118124,4.016,4174.1,4174.0,17.60118342]
[1758672118559,4.016,4174.1,4174.0,16.89578342]
[1758672118827,4.016,4174.1,4174.0,19.06275158]
[1758672119326,4.016,4174.1,4174.0,19.53035158]
[1758672122024,0.001,4174.1,4174.0,19.53035158]
[1758672122224,4.016,4174.1,4174.0,19.53035158]
[1758672123015,0.001,4174.1,4174.0,19.53035158]
[1758672123220,4.014,4174.1,4174.0,19.53035158]
[1758672125131,4.013,4174.1,4174.0,19.53035158]
[1758672125331,0.001,4174.1,4174.0,19.53035158]
[1758672129424,0.001,4174.1,4174.0,18.82495158]
[1758672131851,0.001,4174.1,4174.0,19.07035158]
[1758672132962,0.001,4174.1,4174.0,18.82495158]
[1758672133365,0.2307,4174.1,4174.0,18.82495158]
[1758672133532,0.001,4174.1,4174.0,18.82495158]
[1758672134355,0.001,4174.1,4174.0,19.07035158]
[1758672136064,4.009,4174.1,4174.0,19.07035158]
[1758672139659,0.001,4174.1,4174.0,19.07035158]
[1758672139858,4.007,4174.1,4174.0,19.07035158]
[1758672141999,0.001,4174.1,4174.0,19.07035158]
[1758672142295,4.006,4174.1,4174.0,19.07035158]
[1758672146862,0.001,4174.1,4174.0,18.82495158]
[1758672147095,0.001,4174.1,4174.0,18.82895158]
[1758672147301,0.001,4174.1,4174.0,19.05975158]
[1758672148806,0.001,4174.1,4174.0,19.85175158]
[1758672149016,0.001,4174.1,4174.0,20.29155158]
[1758672149203,0.001,4174.1,4174.0,24.29355158]
[1758672149407,0.001,4174.1,4174.0,24.76652188]
[1758672150066,0.001,4174.1,4174.0,24.88572188]
[1758672151178,1e-08,4174.6,4174.5,3.18749646]
[1758672151404,1e-08,4174.6,4174.5,3.76975806]
[1758672151600,1e-08,4174.6,4174.5,4.55955806]
[1758672152627,1e-08,4174.6,4174.5,19.05955806]
[1758672152928,1e-08,4174.6,4174.5,19.0356031]
[1758672154305,1e-08,4174.6,4174.5,18.2458031]
[1758672154910,0.67140001,4174.6,4174.5,14.5]
[1758672155102,0.67140001,4174.6,4174.5,16.89549646]
[1758672155440,0.67140001,4174.6,4174.5,2.39549646]
[1758672155744,0.67140001,4174.6,4174.5,2.41945142]
[1758672155896,4.68140001,4174.6,4174.5,16.91945142]
[1758672156217,1e-08,4174.6,4174.5,19.61900162]
[1758672156909,0.23770001,4174.6,4174.5,18.82700162]
[1758672157110,0.67140001,4174.6,4174.5,16.89549646]
[1758672157330,0.67140001,4174.6,4174.5,2.39549646]
[1758672157729,0.67140001,4174.6,4174.2,2.3956606]
[1758672157896,1e-08,4174.6,4174.2,2.3956606]
[1758672158234,0.6714,4174.5,4174.3,2.39560592]
[1758672158527,0.6714,4174.4,4174.3,2.39560592]
[1758672159507,0.6714,4174.4,4174.0,0.004]
[1758672159709,6.09,4174.3,4174.2,2.39566111]
[1758672159930,6.7614,4174.3,4174.2,2.39566111]
[1758672160529,6.7114,4174.3,4174.2,2.39566111]
[1758672160728,6.7114,4174.3,4174.0,0.004]
[1758672160924,6.7114,4174.3,4174.2,2.39566863]
[1758672161477,6.7114,4174.3,4174.2,16.89566863]
[1758672163246,6.7114,4174.3,4174.0,0.004]
[1758672163482,6.7114,4174.3,4174.1,2.39572602]
[1758672163785,4.03460427,4174.2,4174.0,0.004]
[1758672163932,0.35670427,4174.1,4174.0,0.004]
[1758672164340,1.03460427,4174.1,4174.0,0.004]
[1758672165248,0.8116641,4174.1,4174.0,0.004]
[1758672166051,1.03449223,4174.1,4174.0,0.004]
[1758672166250,0.8116641,4174.1,4174.0,0.004]
[1758672166747,0.37578065,4174.4,4174.3,2.39561124]
[1758672166949,3.1192,4174.3,4174.2,0.02395668]
[1758672167149,3.25287353,4174.3,4174.2,2.41962531]
[1758672167342,3.1192,4174.3,4174.2,2.41962531]
[1758672168191,0.1192,4174.3,4174.2,2.41962531]
[1758672168394,6.2062,4174.3,4174.2,2.41962531]
[1758672170465,6.2062,4174.3,4174.2,16.91962531]
[1758672170801,6.2062,4174.3,4174.2,16.89566863]
[1758672171799,4.3815,4174.3,4174.2,16.89566863]
[1758672171999,6.4545,4174.3,4174.2,16.89566863]
[1758672172309,6.2062,4174.3,4174.2,16.89566863]
[1758672174587,6.2062,4174.3,4174.2,18.84816604]
[1758672174588,0.1192,4174.3,4174.2,18.84816604]
[1758672174800,1e-08,4174.6,4174.5,2.39549646]
[1758672175008,9.08500001,4174.6,4174.5,2.41945142]
[1758672175511,9.08500001,4174.6,4174.5,16.91945142]
[1758672175714,9.08500001,4174.6,4174.5,16.89549646]
[1758672176072,9.76290001,4174.6,4174.5,14.5]
[1758672176488,9.76290001,4174.6,4174.5,16.89549646]
[1758672176685,9.76290001,4174.6,4174.5,14.5]
[1758672177071,0.1192,4174.5,4174.4,2.39553106]
[1758672177470,0.7971,4174.5,4174.2,14.5]
[1758672177721,4.6899,4174.4,4174.2,14.5]
[1758672178025,4.012,4174.4,4174.3,2.39560555]
[1758672178478,0.7971,4174.3,4174.2,16.89565644]
[1758672179273,0.3675,4174.3,4174.2,16.89565644]
[1758672179793,0.7971,4174.3,4174.2,16.89565644]
[1758672180805,0.7971,4174.3,4174.2,14.5]
[1758672181232,0.7971,4174.3,4174.0,0.004]
[1758672181516,3.0,4174.1,4174.0,0.004]
[1758672181696,3.13364781,4174.1,4174.0,0.004]
[1758672181872,11.00154781,4174.1,4174.0,0.004]
[1758672183319,11.22441669,4174.1,4174.0,0.004]
[1758672183813,11.00154781,4174.1,4174.0,0.004]
[1758672184364,11.22452407,4174.1,4174.0,0.004]
[1758672184604,13.1241372,4174.1,4174.0,0.004]
[1758672186372,11.22452407,4174.1,4174.0,0.004]
[1758672186828,11.22452407,4174.1,4174.0,2.39978342]
[1758672186970,10.54662407,4174.1,4174.0,2.39978342]
[1758672187169,16.62862407,4174.1,4174.0,2.62938342]
[1758672187407,16.62862407,4174.1,4174.0,2.39978342]
[1758672187611,16.62862407,4174.1,4174.0,16.89978342]
[1758672187813,7.54662407,4174.1,4174.0,19.53471582]
[1758672188116,11.3182,4174.1,4174.0,19.53471582]
[1758672188574,7.3092,4174.1,4174.0,19.53471582]
[1758672188775,0.001,4174.3,4174.2,2.39566863]
[1758672188981,0.001,4174.3,4174.2,4.61266376]
[1758672188982,4.011,4174.3,4174.2,4.61266376]
[1758672189176,0.001,4174.3,4174.2,5.29466376]
[1758672189383,2.419,4174.3,4174.2,5.27070708]
[1758672189606,2.419,4174.3,4174.2,5.38990708]
[1758672189807,0.001,4174.3,4174.2,3.19686863]
[1758672189977,0.001,4174.3,4174.2,17.72082531]
[1758672190310,0.001,4174.3,4174.2,18.48886863]
[1758672194712,0.001,4174.3,4174.2,18.58490877]
[1758672195202,0.001,4175.1,4174.9,3.18726695]
[1758672195402,0.001,4175.1,4174.9,3.86472789]
[1758672195733,0.001,4175.1,4174.9,4.56402789]
[1758672195937,0.001,4175.1,4174.9,4.66005236]
[1758672197414,0.001,4175.1,4174.9,4.68400502]
[1758672197936,0.001,4175.1,4174.9,19.18400502]
[1758672198239,0.001,4175.1,4174.9,19.16005236]
[1758672206170,0.001,4175.1,4174.9,18.46075236]
[1758672206471,0.2452,4175.0,4174.9,16.89526695]
[1758672206633,0.001,4175.0,4174.9,17.68726695]
[1758672206826,0.001,4175.0,4174.9,17.80646695]
[1758672207221,0.001,4175.0,4174.9,18.03706695]
[1758672207638,0.001,4175.0,4174.9,18.50576695]
[1758672207864,0.001,4175.0,4174.9,20.94860455]
[1758672211542,0.001,4175.5,4175.4,2.39498012]
[1758672211731,0.001,4175.5,4175.4,7.19598012]
[1758672211933,0.001,4175.5,4175.4,8.01448012]
[1758672212133,0.001,4175.5,4175.4,9.05543762]
[1758672212473,0.001,4175.5,4175.4,23.55543762]
[1758672212636,0.001,4175.5,4175.4,23.65145517]
[1758672215676,0.001,4176.1,4175.4,23.65145517]
[1758672215677,0.001,4176.5,4176.4,2.39440666]
[1758672215979,0.001,4176.5,4176.4,2.86444733]
[1758672216140,0.001,4176.5,4176.4,2.65779139]
[1758672216748,0.001,4176.5,4176.4,2.88839139]
[1758672217352,0.001,4176.5,4176.4,2.65779139]
[1758672217553,0.001,4176.5,4176.4,4.14909139]
[1758672218163,0.001,4176.5,4176.4,18.64909139]
[1758672218359,0.001,4176.5,4176.4,22.63314733]
[1758672222395,0.001,4176.5,4176.4,21.93384733]
[1758672223160,0.2463,4176.5,4176.4,21.93384733]
[1758672223382,0.001,4176.5,4176.4,21.93384733]
[1758672223660,0.7174,4176.5,4176.4,17.92584733]
[1758672223875,0.7174,4176.5,4176.4,16.89440666]
[1758672226008,7.9074,4176.5,4176.4,16.89440666]
[1758672229117,7.9074,4176.5,4176.4,2.39440666]
[1758672229616,7.9074,4176.5,4176.4,16.89440666]
[1758672237848,7.9074,4176.5,4175.9,0.1192]
[1758672238031,5.01196,4176.4,4176.1,2.39453141]
[1758672238346,0.1192,4176.0,4175.5,2.39486929]
[1758672238519,4.2473,4175.9,4175.8,2.3947507]
[1758672238950,4.2473,4175.9,4175.8,16.8947507]
[1758672239741,4.002,4175.9,4175.8,16.8947507]
[1758672240671,0.1192,4176.0,4175.9,2.39469335]
[1758672240836,4.1212,4176.0,4175.9,2.39469335]
[1758672241732,4.3665,4176.0,4175.9,2.39469335]
[1758672242038,4.8376,4176.0,4175.9,2.39469335]
[1758672242630,4.1202,4176.0,4175.9,4.58747122]
[1758672242827,4.1202,4176.0,4175.9,5.26487122]
[1758672243130,4.1202,4176.0,4175.9,5.24092429]
[1758672243365,4.1202,4176.0,4175.9,2.63889335]
[1758672243565,4.1202,4176.0,4175.9,2.39469335]
[1758672243770,4.8366,4176.0,4175.9,2.39469335]
[1758672244453,4.8366,4176.0,4175.9,16.89469335]
[1758672244986,4.3655,4176.0,4175.9,16.89469335]
[1758672245968,4.1202,4176.0,4175.9,16.89469335]
[1758672248372,4.8366,4176.0,4175.9,16.89469335]
[1758672248898,3.0,4175.9,4175.6,2.39882591]
[1758672249069,0.1192,4175.7,4175.6,0.004]
[1758672249262,6.1902,4175.7,4175.6,0.004]
[1758672249468,6.9066,4175.7,4175.6,0.004]
[1758672252206,7.04055663,4175.7,4175.6,0.004]
[1758672252795,11.81197829,4175.7,4175.6,0.004]
[1758672252985,12.03517809,4175.7,4175.6,0.004]
[1758672255817,8.19475643,4175.7,4175.6,0.004]
[1758672255982,10.26675643,4175.7,4175.6,0.004]
[1758672258986,12.66156448,4175.7,4175.6,0.004]
[1758672260087,10.26675643,4175.7,4175.6,0.004]
[1758672260417,12.66156448,4175.7,4175.6,0.004]
[1758672260619,14.97212008,4175.7,4175.6,0.004]
[1758672261021,12.57731203,4175.7,4175.6,0.004]
[1758672261501,12.57731203,4175.7,4175.6,0.002]
[1758672262395,0.47635643,4175.7,4175.6,0.002]
[1758672262594,6.32715663,4175.7,4175.6,0.002]
[1758672262801,6.99545663,4175.7,4175.6,0.002]
[1758672263646,9.32715663,4175.7,4175.6,0.002]
[1758672264530,16.51715663,4175.7,4175.6,2.3968654]
[1758672265146,16.5170089,4175.7,4175.6,2.3968654]
[1758672265545,16.5170089,4175.7,4175.6,0.002]
[1758672266039,16.74003357,4175.7,4175.6,0.002]
[1758672266626,16.5170089,4175.7,4175.6,0.002]
[1758672267001,16.74006179,4175.7,4175.6,0.002]
[1758672267905,16.97686179,4175.7,4175.6,0.002]
[1758672268105,18.75526046,4175.7,4175.6,0.002]
[1758672269268,16.74006179,4175.7,4175.6,2.3968654]
[1758672269472,16.74006179,4175.7,4175.6,0.002]
[1758672270838,10.66606179,4175.7,4175.6,0.002]
[1758672271164,16.97486179,4175.7,4175.6,0.002]
[1758672271364,16.73806179,4175.7,4175.6,0.002]
[1758672271769,14.90186179,4175.7,4175.6,0.002]
[1758672271976,17.40636179,4175.7,4175.6,0.002]
[1758672273242,21.81883856,4175.7,4175.6,0.002]
[1758672273574,22.2140347,4175.7,4175.6,0.002]
[1758672275043,23.27963932,4175.7,4175.6,0.002]
[1758672275244,23.55148932,4175.7,4175.6,0.002]
[1758672275872,24.83693693,4175.7,4175.6,0.002]
[1758672276481,23.55148932,4175.7,4175.6,0.002]
[1758672281790,23.55224521,4175.7,4175.6,0.002]
[1758672281994,17.48024521,4175.7,4175.6,0.002]
[1758672282158,17.78129059,4175.7,4175.6,0.002]
[1758672282358,22.43109631,4175.7,4175.6,0.002]
[1758672282673,15.47449059,4175.7,4175.6,0.002]
[1758672282879,21.55349059,4175.7,4175.6,0.002]
[1758672283674,21.78729059,4175.7,4175.6,0.002]
[1758672284303,22.25619059,4175.7,4175.6,0.002]
[1758672284887,20.18319059,4175.7,4175.6,0.002]
[1758672285064,22.25619059,4175.7,4175.6,0.002]
[1758672287833,22.25619059,4175.7,4175.6,1.8352363]
[1758672288091,22.25619059,4175.7,4175.6,1.9865074]
[1758672288703,22.25619059,4175.7,4175.6,2.13380561]
[1758672289070,22.25419059,4175.7,4175.6,2.26300306]
[1758672289602,22.25419059,4175.7,4175.6,2.39643719]
[1758672290407,22.25419059,4175.7,4175.6,2.50243067]
[1758672290699,22.25419059,4175.7,4175.6,2.60140392]
[1758672291492,22.25519059,4175.7,4175.6,2.60140392]
[1758672291695,22.25519059,4175.7,4175.6,2.66565432]
[1758672292204,22.25519059,4175.7,4175.6,3.48720208]
[1758672293194,22.25519059,4175.7,4175.6,4.41997994]
[1758672293773,22.25519059,4175.7,4175.6,5.23462649]
[1758672294179,23.04719059,4175.7,4175.6,5.23462649]
[1758672294382,23.69099631,4175.7,4175.6,5.23462649]
[1758672294605,23.69099631,4175.7,4175.6,5.81691573]
[1758672295011,30.69099631,4175.7,4175.6,5.81691573]
[1758672295212,30.69106521,4175.7,4175.6,5.81691573]
[1758672295428,30.69106521,4175.7,4175.6,6.1105928]
[1758672296320,30.69106521,4175.7,4175.6,6.28847392]
[1758672296824,30.69106521,4175.7,4175.6,6.44398938]
[1758672297032,23.11936521,4175.7,4175.6,6.44398938]
[1758672297319,35.67436521,4175.7,4175.6,7.16288938]
[1758672297519,23.11936521,4175.7,4175.6,6.68948938]
[1758672297681,29.19536521,4175.7,4175.6,6.68948938]
[1758672297889,29.19536521,4175.7,4175.6,6.8299128]
[1758672298504,29.19536521,4175.7,4175.6,7.60495526]
[1758672299448,29.19536521,4175.7,4175.6,7.85600114]
[1758672300368,28.55155949,4175.7,4175.6,7.85600114]
[1758672300516,28.55155949,4175.7,4175.6,7.34071715]
[1758672300706,29.25425949,4175.7,4175.6,7.34071715]
[1758672301157,29.25425949,4175.7,4175.6,7.52714463]
[1758672301565,28.55155949,4175.7,4175.6,7.52714463]
[1758672301927,28.55155949,4175.7,4175.6,7.88499561]
[1758672302115,28.55155949,4175.7,4175.6,7.63949561]
[1758672302308,30.31810949,4175.7,4175.6,7.63949561]
[1758672302621,31.87716172,4175.7,4175.6,7.63949561]
[1758672302825,31.87716172,4175.7,4175.6,7.7472769]
[1758672303210,30.59171411,4175.7,4175.6,7.7472769]
[1758672303418,30.59171411,4175.7,4175.6,6.45104135]
[1758672304042,0.792,4175.5,4175.3,0.004]
[1758672304340,12.62524817,4175.4,4175.3,0.004]
[1758672304523,13.23018852,4175.4,4175.3,0.004]
[1758672304941,13.60594573,4175.4,4175.3,0.004]
[1758672305519,12.21957262,4175.4,4175.3,0.004]
[1758672305714,20.50380152,4175.4,4175.3,0.004]
[1758672306716,20.4426249,4175.4,4175.3,0.004]
[1758672307316,27.4426249,4175.4,4175.3,0.004]
[1758672307719,28.68241457,4175.4,4175.3,0.004]
[1758672308246,28.68256241,4175.4,4175.3,0.004]
[1758672308427,27.39288722,4175.4,4175.3,0.004]
[1758672311949,27.12103722,4175.4,4175.3,0.004]
[1758672312959,28.40992413,4175.4,4175.3,0.004]
[1758672313159,32.6227326,4175.4,4175.3,0.004]
[1758672313362,36.22372693,4175.4,4175.3,0.004]
[1758672313563,36.68342693,4175.4,4175.3,0.004]
[1758672313762,23.42962693,4175.4,4175.3,0.004]
[1758672313960,33.9047326,4175.4,4175.3,0.6824]
[1758672314676,34.6967326,4175.4,4175.3,0.6824]
[1758672315172,21.3487326,4175.4,4175.3,0.6824]
[1758672315371,34.76300557,4175.4,4175.3,0.6824]
[1758672316364,10.32098777,4175.4,4175.3,0.6824]
[1758672316540,14.32298777,4175.4,4175.3,0.6824]
[1758672316739,17.32298777,4175.4,4175.3,0.6824]
[1758672317741,11.24798777,4175.4,4175.3,0.6824]
[1758672317955,8.24798777,4175.4,4175.3,0.6824]
[1758672318160,14.32298777,4175.4,4175.3,0.6824]
[1758672318356,17.32298777,4175.4,4175.3,0.6824]
[1758672318659,10.87223056,4175.4,4175.3,0.6824]
[1758672318992,16.94823056,4175.4,4175.3,0.6824]